Portfolio,Expense Area,Cost Centre,Expense Type,Account Code,Amount,Supplier Name,SupplierId,Pay Date,Transaction No.
Resources & Corporate Governance ,Highways,WHG00,Vehicle Repair and Maintenance,0200,3.47,A J Parsons & Sons Ltd,100006,17/05/2012,10167581
Resources & Corporate Governance ,Street Cleansing,WSC00,Vehicle Repair and Maintenance,0200,33.72,A J Parsons & Sons Ltd,100006,17/05/2012,10167581
Resources & Corporate Governance ,Domestic Waste Collection,WWC00,Vehicle Repair and Maintenance,0200,121.74,A J Parsons & Sons Ltd,100006,17/05/2012,10167581
Resources & Corporate Governance ,Garage Internal,WVR01,Materials,0303,592.42,A J Parsons & Sons Ltd,100006,17/05/2012,10167581
Resources & Corporate Governance ,Safety and Resilience,EPL00,New Equipment,0300,1429.04,Arco Limited,100015,03/05/2012,10165545
Resources & Corporate Governance ,Street Cleansing,WSC00,Materials,0303,36.10,Arco Limited,100015,31/05/2012,10167968
Resources & Corporate Governance ,Domestic Waste Collection,WWC00,Materials,0303,1020.30,Arco Limited,100015,31/05/2012,10167968
Resources & Corporate Governance ,TREE WORKS,WGM01,Personal Protective Clothing,0340,49.75,Arco Limited,100015,31/05/2012,10167968
Resources & Corporate Governance ,Toilet Cleaning,WBC01,Materials,0303,835.30,Arco Limited,100015,31/05/2012,10167968
Resources & Corporate Governance ,Grounds Maintenance,WGM00,Materials,0303,42.00,Arco Limited,100015,31/05/2012,10167968
Resources & Corporate Governance ,Street Cleansing,WSC00,Tools,0304,26.40,Arrow Engineering Supply Co Ltd,100016,24/05/2012,10167323
Resources & Corporate Governance ,Garage Internal,WVR01,Tools,0304,339.17,Arrow Engineering Supply Co Ltd,100016,24/05/2012,10167323
Resources & Corporate Governance ,Domestic Waste Collection,WWC00,Tools,0304,284.64,Arrow Engineering Supply Co Ltd,100016,24/05/2012,10167323
Resources & Corporate Governance ,TREE WORKS,WGM01,Materials,0303,237.48,Arrow Engineering Supply Co Ltd,100016,24/05/2012,10167323
Resources & Corporate Governance ,TREE WORKS,WGM01,Tools,0304,321.95,Arrow Engineering Supply Co Ltd,100016,24/05/2012,10167323
Resources & Corporate Governance ,General Financial Services,GFS00,External Contractor & Operator,0742,9250.00,Audit Commission,100020,17/05/2012,10167536
Resources & Corporate Governance ,Grounds Maintenance,WGM00,Materials,0303,1821.40,Amberol Ltd,100043,17/05/2012,10167142
Housing Revenue Account ,Unplanned Maintenance and Repair,UMR00,R&M External Contractors,0100,2088.20,AWM Electrical Contractors Ltd,100051,10/05/2012,10167095
Housing Revenue Account ,Unplanned Maintenance and Repair,UMR00,R&M External Contractors,0100,626.97,AWM Electrical Contractors Ltd,100051,10/05/2012,10167096
Housing Revenue Account ,Unplanned Maintenance and Repair,UMR00,R&M External Contractors,0100,2754.26,AWM Electrical Contractors Ltd,100051,17/05/2012,10167480
Housing Revenue Account ,Estate Management,MAN22,Movement Incentives,0454,36.66,AWM Electrical Contractors Ltd,100051,17/05/2012,10167480
Housing Revenue Account ,Unplanned Maintenance and Repair,UMR00,R&M External Contractors,0100,3395.28,AWM Electrical Contractors Ltd,100051,24/05/2012,10167840
Housing Revenue Account ,Unplanned Maintenance and Repair,UMR00,R&M External Contractors,0100,1697.57,AWM Electrical Contractors Ltd,100051,31/05/2012,10168338
Housing Revenue Account ,Unplanned Maintenance and Repair,UMR00,R&M External Contractors,0100,442.99,Andy Woods Landscapes,100078,10/05/2012,10167099
Housing Revenue Account ,Unplanned Maintenance and Repair,UMR00,R&M External Contractors,0100,1881.04,Andy Woods Landscapes,100078,31/05/2012,10168145
Housing Revenue Account ,Unplanned Maintenance and Repair,UMR00,R&M External Contractors,0100,826.93,Andy Woods Landscapes,100078,31/05/2012,10168342
Sustainable Inclusive Communities,CL Grants,CGS00,Grants To Voluntary Organisations,0720,17000.00,Age Concern Warwickshire,100082,10/05/2012,10166742
Capital Program ,Kitchen Modifications,HIK10,Capital Contract Payments,5000,6866.42,A C E Carpentry & Joinery Contractors Ltd,100085,03/05/2012,10166981
Capital Program ,Kitchen Modifications,HIK10,Capital Contract Payments,5000,6893.58,A C E Carpentry & Joinery Contractors Ltd,100085,24/05/2012,10167161
Capital Program ,Kitchen Modifications,HIK10,Capital Contract Payments,5000,13787.16,A C E Carpentry & Joinery Contractors Ltd,100085,24/05/2012,10167313
Capital Program ,Kitchen Modifications,HIK10,Capital Contract Payments,5000,1791.00,A C E Carpentry & Joinery Contractors Ltd,100085,17/05/2012,10167698
Housing Revenue Account ,Unplanned Maintenance and Repair,UMR00,R&M External Contractors,0100,180.00,A C E Carpentry & Joinery Contractors Ltd,100085,17/05/2012,10167698
Capital Program ,Kitchen Modifications,HIK10,Capital Contract Payments,5000,4752.00,A C E Carpentry & Joinery Contractors Ltd,100085,31/05/2012,10168180
Housing Revenue Account ,Unplanned Maintenance and Repair,UMR00,R&M External Contractors,0100,792.00,A C E Carpentry & Joinery Contractors Ltd,100085,31/05/2012,10168180
Sustainable Environment ,Grass Cutting,PKS13,External Contractor & Operator,0742,595.00,Birdingbury Parish Council,100145,24/05/2012,10167768
Sustainable Environment ,Grass Cutting,PKS13,External Contractor & Operator,0742,4091.00,Brinklow Parish Council,100157,31/05/2012,10168359
Housing Revenue Account ,Control Centre (HRA),CCE00,Maintenance of Equipment,0301,5176.48,British Telecommunications Plc,100161,17/05/2012,10167690
Housing Revenue Account ,Alfred Green Close AP,AGP01,Gas,0131,604.78,British Gas Business,100217,17/05/2012,10167593
Resources & Corporate Governance ,WSU Depot,WDP00,Telephone Expenses,0371,810.31,Bt Redcare,100221,17/05/2012,10167401
Sustainable Inclusive Communities,CL Grants,CGS00,Grants To Voluntary Organisations,0720,3000.00,Benn Partnership Centre,100235,24/05/2012,10167452
Resources & Corporate Governance,Corporate Property R&M,CPA01,R&M External Contractors,0100,753.00,Bowen Builders,100241,03/05/2012,10166692
Capital Program ,Energy Efficiency,EGE00,Capital Contract Payments,5000,2076.00,Bowen Builders,100241,24/05/2012,10166884
Capital Program ,Energy Efficiency,EGE00,Capital Contract Payments,5000,1986.00,Bowen Builders,100241,24/05/2012,10166885
Housing Revenue Account ,Unplanned Maintenance and Repair,UMR00,R&M External Contractors,0100,550.35,Bowen Builders,100241,03/05/2012,10166889
Housing Revenue Account ,Unplanned Maintenance and Repair,UMR00,R&M External Contractors,0100,550.92,Bowen Builders,100241,10/05/2012,10167224
Capital Program ,Disabled Adaptations,HCR01,Capital Contract Payments,5000,70.44,Bowen Builders,100241,10/05/2012,10167224
Housing Revenue Account ,Unplanned Maintenance and Repair,UMR00,R&M External Contractors,0100,923.75,Bowen Builders,100241,17/05/2012,10167482
Capital Program ,Disabled Adaptations,HCR01,Capital Contract Payments,5000,52.83,Bowen Builders,100241,17/05/2012,10167482
Housing Revenue Account ,Unplanned Maintenance and Repair,UMR00,R&M External Contractors,0100,926.03,Bowen Builders,100241,17/05/2012,10167483
Housing Revenue Account ,Unplanned Maintenance and Repair,UMR00,R&M External Contractors,0100,1456.56,Bowen Builders,100241,24/05/2012,10167834
Housing Revenue Account ,Unplanned Maintenance and Repair,UMR00,R&M External Contractors,0100,479.87,Bowen Builders,100241,24/05/2012,10167835
Capital Program ,Disabled Adaptations,HCR01,Capital Contract Payments,5000,35.22,Bowen Builders,100241,24/05/2012,10167835
Housing Revenue Account ,Unplanned Maintenance and Repair,UMR00,R&M External Contractors,0100,5543.89,Bowen Builders,100241,24/05/2012,10167836
Housing Revenue Account ,Unplanned Maintenance and Repair,UMR00,R&M External Contractors,0100,1741.42,Bowen Builders,100241,24/05/2012,10167837
Resources & Corporate Governance,Handy man,WHM00,External Contractor & Operator,0742,636.17,Bowen Builders,100241,31/05/2012,10168088
Resources & Corporate Governance,Handy man,WHM00,External Contractor & Operator,0742,1119.73,Bowen Builders,100241,31/05/2012,10168089
Resources & Corporate Governance,Handy man,WHM00,External Contractor & Operator,0742,618.41,Bowen Builders,100241,31/05/2012,10168090
Resources & Corporate Governance,Handy man,WHM00,External Contractor & Operator,0742,817.00,Bowen Builders,100241,31/05/2012,10168091
Housing Revenue Account ,Unplanned Maintenance and Repair,UMR00,R&M External Contractors,0100,673.68,Bowen Builders,100241,31/05/2012,10168138
Housing Revenue Account ,Unplanned Maintenance and Repair,UMR00,R&M External Contractors,0100,325.76,Barron McCann Ltd,100248,31/05/2012,10168344
Housing Revenue Account ,Multi-Storey Flats,MSF00,New Equipment,0300,712.00,Barron McCann Ltd,100248,31/05/2012,10168344
Economy Development & Culture,Building Control Services,BCS00,Subscriptions,0421,228.33,Bsi,100291,10/05/2012,10167223
Economy Development & Culture,Building Regulation Fee Earning Account,BCS99,Subscriptions,0421,302.67,Bsi,100291,10/05/2012,10167223
Resources & Corporate Governance ,Garage Internal,WVR01,Tools,0304,1412.75,Charles Watts Engineering Ltd,100302,10/05/2012,10167058
Sustainable Environment ,Grass Cutting,PKS13,External Contractor & Operator,0742,1059.00,Church Lawford Parish Council,100306,03/05/2012,10166846
Resources & Corporate Governance ,IT Procurement,CMP00,IT Capital Expenditure,5025,12510.00,Stone Computers,100390,17/05/2012,10167510
Resources & Corporate Governance ,IT Procurement,CMP00,IT Capital Expenditure,5025,6200.00,Stone Computers,100390,31/05/2012,10168120
Housing Revenue Account ,Tanser Court AP,AGP17,New Equipment,0300,2211.08,Curtains By Design,100526,24/05/2012,10167870
Capital Program ,Kitchen Modifications,HIK10,Capital Contract Payments,5000,2275.00,JADA Building & Maintenance Services Ltd,100583,10/05/2012,10166649
Capital Program ,Disabled Adaptations,HCR01,Capital Contract Payments,5000,197.28,JADA Building & Maintenance Services Ltd,100583,03/05/2012,10166751
Housing Revenue Account ,Unplanned Maintenance and Repair,UMR00,R&M External Contractors,0100,5986.75,JADA Building & Maintenance Services Ltd,100583,03/05/2012,10166751
Housing Revenue Account ,Estate Management,MAN22,Estates,0457,119.21,JADA Building & Maintenance Services Ltd,100583,03/05/2012,10166751
Capital Program ,Pettiver Crescent,PCH00,Capital Contract Payments,5000,32.54,JADA Building & Maintenance Services Ltd,100583,03/05/2012,10166751
Housing Revenue Account ,Estate Management,MAN22,Estates,0457,52.73,JADA Building & Maintenance Services Ltd,100583,10/05/2012,10167226
Housing Revenue Account ,Unplanned Maintenance and Repair,UMR00,R&M External Contractors,0100,3501.75,JADA Building & Maintenance Services Ltd,100583,10/05/2012,10167226
Housing Revenue Account ,Unplanned Maintenance and Repair,UMR00,R&M External Contractors,0100,4697.67,JADA Building & Maintenance Services Ltd,100583,17/05/2012,10167485
Housing Revenue Account ,Estate Management,MAN22,Estates,0457,30.23,JADA Building & Maintenance Services Ltd,100583,17/05/2012,10167485
Capital Program ,Disabled Adaptations,HCR01,Capital Contract Payments,5000,16.62,JADA Building & Maintenance Services Ltd,100583,17/05/2012,10167485
Housing Revenue Account ,Sheltered Housing Team,MAN21,Estates,0457,30.23,JADA Building & Maintenance Services Ltd,100583,31/05/2012,10168081
Housing Revenue Account ,Unplanned Maintenance and Repair,UMR00,R&M External Contractors,0100,4229.19,JADA Building & Maintenance Services Ltd,100583,31/05/2012,10168081
Housing Revenue Account ,Estate Management,MAN22,External Contractor & Operator,0742,52.73,JADA Building & Maintenance Services Ltd,100583,31/05/2012,10168081
Capital Program ,Disabled Adaptations,HCR01,Capital Contract Payments,5000,49.86,JADA Building & Maintenance Services Ltd,100583,31/05/2012,10168081
Housing Revenue Account ,Sheltered Housing Team,MAN21,Estates,0457,28.38,Lee Davies Decorating,100600,10/05/2012,10167100
Housing Revenue Account ,Unplanned Maintenance and Repair,UMR00,R&M External Contractors,0100,3262.98,Lee Davies Decorating,100600,10/05/2012,10167100
Housing Revenue Account ,Unplanned Maintenance and Repair,UMR00,R&M External Contractors,0100,2250.93,Lee Davies Decorating,100600,31/05/2012,10168146
Housing Revenue Account ,Repainting Schemes,UMR02,R&M External Contractors,0100,1784.78,Lee Davies Decorating,100600,31/05/2012,10168146
Housing Revenue Account ,Sheltered Housing Team,MAN21,Estates,0457,720.28,Lee Davies Decorating,100600,31/05/2012,10168146
Resources & Corporate Governance ,WSU Depot,WDP00,Gas,0131,844.28,ESPO,100641,03/05/2012,10166871
Resources & Corporate Governance,Corporate Property Central Utilities,CPA02,Gas,0131,1383.83,ESPO,100641,10/05/2012,10167233
Resources & Corporate Governance ,Garage Internal,WVR01,Materials,0303,2569.00,Fuchs Lubricants (Uk) Plc,100832,24/05/2012,10167751
,Balance Sheet,BS,Car Leasing Scheme,9244,3174.88,Lex Autolease Ltd,100844,17/05/2012,10167468
,Balance Sheet,BS,Car Leasing Scheme,9244,2487.47,Lex Autolease Ltd,100844,17/05/2012,10167469
,Balance Sheet,BS,Car Leasing Scheme,9244,2021.95,Lex Autolease Ltd,100844,17/05/2012,10167470
,Balance Sheet,BS,Car Leasing Scheme,9244,7540.50,Lex Autolease Ltd,100844,24/05/2012,10167945
Resources & Corporate Governance ,Town Hall,OFF00,Materials,0303,578.00,Greenham,100890,17/05/2012,10167002
Capital Program ,Pettiver Crescent,PCH00,Capital Contract Payments,5000,510.00,David Gilkes & Sons Ltd,100913,03/05/2012,10166727
Capital Program ,Pettiver Crescent,PCH00,Capital Contract Payments,5000,520.00,David Gilkes & Sons Ltd,100913,03/05/2012,10166729
Housing Revenue Account ,Supervision and Management General,MAN00,Asset Management Expenses,0448,1620.85,Godfrey-Payton Chartered Surveyors,100937,03/05/2012,10167074
Resources & Corporate Governance ,Human Resources Centralised Services,RES31,Recruitment Expenses,0012,1365.00,TMP (UK) LTD,100972,10/05/2012,10167216
Resources & Corporate Governance ,Human Resources Centralised Services,RES31,Recruitment Expenses,0012,905.38,TMP (UK) LTD,100972,10/05/2012,10167217
Resources & Corporate Governance,Corporate Property R&M,CPA01,R&M External Contractors,0100,390.00,ThyssenKrupp Elevator UK,100985,17/05/2012,10166663
Resources & Corporate Governance,Corporate Property R&M,CPA01,External Contractor & Operator,0742,453.33,ThyssenKrupp Elevator UK,100985,17/05/2012,10166663
Housing Revenue Account ,Miscellaneous Income,INC00,Reimbursements - Outside Scope,1107,5746.01,Jardine Lloyd Thompson,101192,17/05/2012,10166514
Sustainable Inclusive Communities,House Purchase and Improvement Loans,HPL00,Other Insurance Premiums,0440,1182.24,Jardine Lloyd Thompson,101192,17/05/2012,10166514
Capital Program ,Sale of Council Houses,SCH00,Other Insurance Premiums,0440,295.56,Jardine Lloyd Thompson,101192,17/05/2012,10166514
Housing Revenue Account ,Supervision and Management General,MAN00,Reimbursements - Outside Scope,1107,1737.53,Jardine Lloyd Thompson,101192,17/05/2012,10166514
Resources & Corporate Governance ,General Financial Services,GFS00,Other Insurance Premiums,0440,6500.00,Jardine Lloyd Thompson,101192,24/05/2012,10167695
Resources & Corporate Governance ,Grounds Maintenance,WGM00,External Contractor & Operator,0742,7484.00,K A Hicks,101216,03/05/2012,10167071
Resources & Corporate Governance ,Grounds Maintenance,WGM00,External Contractor & Operator,0742,7484.00,K A Hicks,101216,31/05/2012,10168129
Capital Program ,Kitchen Modifications,HIK10,Capital Contract Payments,5000,1107.68,M & J Engineers Ltd,101278,10/05/2012,10166887
Resources & Corporate Governance,Corporate Property R&M,CPA01,R&M External Contractors,0100,644.79,MBG Decorators (Rugby Ltd),101288,03/05/2012,10166684
Housing Revenue Account ,Repainting Schemes,UMR02,R&M External Contractors,0100,2660.00,MBG Decorators (Rugby Ltd),101288,03/05/2012,10166892
Housing Revenue Account ,Repainting Schemes,UMR02,R&M External Contractors,0100,1540.00,MBG Decorators (Rugby Ltd),101288,10/05/2012,10167228
Housing Revenue Account ,Unplanned Maintenance and Repair,UMR00,R&M External Contractors,0100,824.66,MBG Decorators (Rugby Ltd),101288,10/05/2012,10167228
Housing Revenue Account ,Repainting Schemes,UMR02,R&M External Contractors,0100,2653.36,MBG Decorators (Rugby Ltd),101288,24/05/2012,10167842
Housing Revenue Account ,Repainting Schemes,UMR02,R&M External Contractors,0100,3967.55,MBG Decorators (Rugby Ltd),101288,31/05/2012,10168082
Housing Revenue Account ,Repainting Schemes,UMR02,R&M External Contractors,0100,3068.38,MBG Decorators (Rugby Ltd),101288,31/05/2012,10168144
Resources & Corporate Governance,Handy man,WHM00,Materials,0303,1129.92,Melbros Ltd,101291,03/05/2012,10166303
Resources & Corporate Governance,Handy man,WHM00,Materials,0303,472.83,Melbros Ltd,101291,24/05/2012,10167279
Resources & Corporate Governance,Handy man,WHM00,Materials,0303,552.40,Melbros Ltd,101291,17/05/2012,10167288
Housing Revenue Account ,Unplanned Maintenance and Repair,UMR00,R&M External Contractors,0100,610.69,Msm Environmental Services,101317,17/05/2012,10167624
Housing Revenue Account ,Unplanned Maintenance and Repair,UMR00,R&M External Contractors,0100,496.25,Msm Environmental Services,101317,17/05/2012,10167626
Housing Revenue Account ,Unplanned Maintenance and Repair,UMR00,R&M External Contractors,0100,434.66,Msm Environmental Services,101317,17/05/2012,10167634
Resources & Corporate Governance,Corporate Property R&M,CPA01,R&M External Contractors,0100,917.73,Msm Environmental Services,101317,31/05/2012,10167641
Resources & Corporate Governance,Corporate Property R&M,CPA01,R&M External Contractors,0100,853.36,Msm Environmental Services,101317,31/05/2012,10167642
Resources & Corporate Governance,Corporate Property R&M,CPA01,R&M External Contractors,0100,618.00,Msm Environmental Services,101317,31/05/2012,10167645
Capital Program ,Parish and Rural Capital Spending,CGR03,Capital Grants,5014,15426.00,Newton & Biggin Parish Council,101366,24/05/2012,10167764
Resources & Corporate Governance ,Domestic Waste Collection,WWC00,Vehicle Repair and Maintenance,0200,2346.27,Noden Truck Centre Ltd,101368,17/05/2012,10167575
Resources & Corporate Governance ,Highways,WHG00,Vehicle Repair and Maintenance,0200,1768.87,Noden Truck Centre Ltd,101368,17/05/2012,10167577
Resources & Corporate Governance ,Domestic Waste Collection,WWC00,Vehicle Repair and Maintenance,0200,662.73,Noden Truck Centre Ltd,101368,17/05/2012,10167578
Resources & Corporate Governance ,Street Cleansing,WSC00,Vehicle Repair and Maintenance,0200,190.82,Noden Truck Centre Ltd,101368,17/05/2012,10167586
Resources & Corporate Governance ,Garage Internal,WVR01,Materials,0303,384.62,Noden Truck Centre Ltd,101368,17/05/2012,10167586
Resources & Corporate Governance ,Street Cleansing,WSC00,Vehicle Repair and Maintenance,0200,698.56,Noden Truck Centre Ltd,101368,24/05/2012,10167728
Resources & Corporate Governance ,Maintenance of Customer Services Systems,CIS21,Software Maintenance,0374,795.00,Ncc Services Limited,101374,17/05/2012,10167348
Sustainable Inclusive Communities,CL Grants,CGS00,Grants To Voluntary Organisations,0720,5000.00,New Bilton Community Association,101389,17/05/2012,10167454
Economy Development & Culture,Visitor Centre,VSC00,Events Tickets - Zero Rated,1405,1277.06,National Express Ltd,101392,03/05/2012,10167076
Capital Program ,RG Disabled Facilities,REN01,Capital Grants,5014,1172.88,Heart of England Housing Association,101400,31/05/2012,10168052
Resources & Corporate Governance,Central Business Support Services,CSS15,External Printing,0352,989.00,Polycopy,101428,03/05/2012,10167043
Resources & Corporate Governance,Central Business Support Services,CSS15,External Printing,0352,1008.00,Polycopy,101428,17/05/2012,10167553
Sustainable Environment,Regulatory Services,REG00,Vehicle Running Costs,0201,215.00,Post Office Ltd,101429,17/05/2012,10167492
Resources & Corporate Governance ,Domestic Waste Collection,WWC00,Vehicle Running Costs,0201,650.00,Post Office Ltd,101429,17/05/2012,10167492
Resources & Corporate Governance,Handy man,WHM00,Vehicle Running Costs,0201,215.00,Post Office Ltd,101429,17/05/2012,10167492
Sustainable Inclusive Communities,Sewage Disposal Plant,SDP00,R&M External Contractors,0100,520.28,PJT Pumping Services,101438,10/05/2012,10166439
Resources & Corporate Governance,Corporate Property Central Utilities,CPA02,Gas,0131,549.46,E.ON,101479,24/05/2012,10167761
Sustainable Environment ,Caldecott Park/Town Centre Area,PKS00,External Contractor & Operator,0742,450.00,Post To Post Fencing,101490,03/05/2012,10167065
Resources & Corporate Governance ,Human Resources Centralised Services,RES31,Training fees,0011,2614.00,Patricia Cresswell & Associates,101494,31/05/2012,10168209
Resources & Corporate Governance ,Highways,WHG00,Materials,0303,603.00,Lafarge Aggregates Limited,101503,03/05/2012,10166568
Economy Development & Culture,Town Centre Public Conveniences,PCS00,Rates,0141,2473.20,Rugby Borough Council,101516,03/05/2012,10166212
Capital Program ,Pettiver Crescent,PCH00,Capital Contract Payments,5000,677.15,Rugby Borough Council,101516,03/05/2012,10166844
Housing Revenue Account ,Supervision and Management General,MAN00,Council Tax,0142,703.42,Rugby Borough Council,101516,17/05/2012,10167670
Sustainable Environment ,Caldecott Park/Town Centre Area,PKS00,Internal Contractor,0743,706.70,Rugby Borough Council,101516,24/05/2012,10167947
Economy Development & Culture,Building Control Services,BCS00,Postage & Distribution,0370,0.76,Royal Mail,101554,03/05/2012,10166407
Economy Development & Culture,Building Regulation Fee Earning Account,BCS99,Postage & Distribution,0370,1.00,Royal Mail,101554,03/05/2012,10166407
Economy Development & Culture,Planning General/Income,PLN00,Postage & Distribution,0370,75.24,Royal Mail,101554,03/05/2012,10166407
Resources & Corporate Governance ,General Administration,WAD00,Postage & Distribution,0370,76.72,Royal Mail,101554,03/05/2012,10166407
Resources & Corporate Governance,Central Business Support Services,CSS15,Postage & Distribution,0370,298.91,Royal Mail,101554,03/05/2012,10166407
Resources & Corporate Governance ,Council Tax and NNDR Collection,CTX01,Postage & Distribution,0370,194.68,Royal Mail,101554,03/05/2012,10166407
Resources & Corporate Governance ,Electoral Registration,ERG00,Postage & Distribution,0370,256.17,Royal Mail,101554,03/05/2012,10166407
Sustainable Inclusive Communities,Housing Benefit Administration,HBA00,Postage & Distribution,0370,113.77,Royal Mail,101554,03/05/2012,10166407
Housing Revenue Account ,Supervision and Management General,MAN00,Postage & Distribution,0370,104.72,Royal Mail,101554,03/05/2012,10166407
Economy Development & Culture,Visitor Centre,VSC00,Postage & Distribution,0370,3.08,Royal Mail,101554,03/05/2012,10166407
Economy Development & Culture,Art Gallery and Museum,AGM00,Postage & Distribution,0370,35.29,Royal Mail,101554,03/05/2012,10166407
Economy Development & Culture,Car Parks General,CPK01,Postage & Distribution,0370,49.02,Royal Mail,101554,03/05/2012,10166407
Economy Development & Culture,Decrim. of Car Parking on street parking,DPE02,Postage & Distribution,0370,196.07,Royal Mail,101554,03/05/2012,10166407
Economy Development & Culture,Art Gallery and Museum,AGM00,Postage & Distribution,0370,2.78,Royal Mail,101554,31/05/2012,10166709
Economy Development & Culture,Decrim. of Car Parking on street parking,DPE02,Postage & Distribution,0370,86.12,Royal Mail,101554,31/05/2012,10166709
Economy Development & Culture,Building Control Services,BCS00,Postage & Distribution,0370,1.65,Royal Mail,101554,31/05/2012,10166709
Resources & Corporate Governance ,Council Tax and NNDR Collection,CTX01,Postage & Distribution,0370,10.03,Royal Mail,101554,31/05/2012,10166709
Sustainable Inclusive Communities,Housing Benefit Administration,HBA00,Postage & Distribution,0370,74.01,Royal Mail,101554,31/05/2012,10166709
Housing Revenue Account ,Supervision and Management General,MAN00,Postage & Distribution,0370,58.06,Royal Mail,101554,31/05/2012,10166709
Economy Development & Culture,Visitor Centre,VSC00,Postage & Distribution,0370,1.20,Royal Mail,101554,31/05/2012,10166709
Resources & Corporate Governance,Central Business Support Services,CSS15,Postage & Distribution,0370,174.03,Royal Mail,101554,31/05/2012,10166709
Resources & Corporate Governance ,Electoral Registration,ERG00,Postage & Distribution,0370,859.49,Royal Mail,101554,31/05/2012,10166709
Economy Development & Culture,Planning General/Income,PLN00,Postage & Distribution,0370,53.74,Royal Mail,101554,31/05/2012,10166709
Economy Development & Culture,Building Regulation Fee Earning Account,BCS99,Postage & Distribution,0370,2.18,Royal Mail,101554,31/05/2012,10166709
Economy Development & Culture,Car Parks General,CPK01,Postage & Distribution,0370,21.53,Royal Mail,101554,31/05/2012,10166709
Resources & Corporate Governance ,General Administration,WAD00,Postage & Distribution,0370,11.80,Royal Mail,101554,31/05/2012,10166709
Resources & Corporate Governance ,Borough Elections,ELC00,Postage & Distribution,0370,3948.78,Royal Mail,101554,31/05/2012,10166833
Resources & Corporate Governance ,Electoral Registration,ERG00,Postage & Distribution,0370,32.33,Royal Mail,101554,10/05/2012,10167088
Sustainable Inclusive Communities,Housing Benefit Administration,HBA00,Postage & Distribution,0370,126.83,Royal Mail,101554,10/05/2012,10167088
Economy Development & Culture,Planning General/Income,PLN00,Postage & Distribution,0370,34.40,Royal Mail,101554,10/05/2012,10167088
Economy Development & Culture,Visitor Centre,VSC00,Postage & Distribution,0370,24.47,Royal Mail,101554,10/05/2012,10167088
Resources & Corporate Governance ,General Administration,WAD00,Postage & Distribution,0370,13.20,Royal Mail,101554,10/05/2012,10167088
Economy Development & Culture,Art Gallery and Museum,AGM00,Postage & Distribution,0370,2.85,Royal Mail,101554,10/05/2012,10167088
Economy Development & Culture,Car Parks General,CPK01,Postage & Distribution,0370,17.43,Royal Mail,101554,10/05/2012,10167088
Resources & Corporate Governance,Central Business Support Services,CSS15,Postage & Distribution,0370,210.99,Royal Mail,101554,10/05/2012,10167088
Economy Development & Culture,Decrim. of Car Parking on street parking,DPE02,Postage & Distribution,0370,69.73,Royal Mail,101554,10/05/2012,10167088
Economy Development & Culture,Building Control Services,BCS00,Postage & Distribution,0370,2.58,Royal Mail,101554,10/05/2012,10167088
Economy Development & Culture,Building Regulation Fee Earning Account,BCS99,Postage & Distribution,0370,3.41,Royal Mail,101554,10/05/2012,10167088
Resources & Corporate Governance ,Council Tax and NNDR Collection,CTX01,Postage & Distribution,0370,996.44,Royal Mail,101554,10/05/2012,10167088
Housing Revenue Account ,Supervision and Management General,MAN00,Postage & Distribution,0370,62.64,Royal Mail,101554,10/05/2012,10167088
Economy Development & Culture,Art Gallery and Museum,AGM00,Postage & Distribution,0370,4.78,Royal Mail,101554,31/05/2012,10167682
Economy Development & Culture,Building Control Services,BCS00,Postage & Distribution,0370,2.72,Royal Mail,101554,31/05/2012,10167682
Resources & Corporate Governance ,Council Tax and NNDR Collection,CTX01,Postage & Distribution,0370,267.52,Royal Mail,101554,31/05/2012,10167682
Economy Development & Culture,Decrim. of Car Parking on street parking,DPE02,Postage & Distribution,0370,212.58,Royal Mail,101554,31/05/2012,10167682
Housing Revenue Account ,Supervision and Management General,MAN00,Postage & Distribution,0370,93.32,Royal Mail,101554,31/05/2012,10167682
Economy Development & Culture,Building Regulation Fee Earning Account,BCS99,Postage & Distribution,0370,3.60,Royal Mail,101554,31/05/2012,10167682
Resources & Corporate Governance,Central Business Support Services,CSS15,Postage & Distribution,0370,422.12,Royal Mail,101554,31/05/2012,10167682
Resources & Corporate Governance ,Electoral Registration,ERG00,Postage & Distribution,0370,120.51,Royal Mail,101554,31/05/2012,10167682
Sustainable Inclusive Communities,Housing Benefit Administration,HBA00,Postage & Distribution,0370,138.75,Royal Mail,101554,31/05/2012,10167682
Economy Development & Culture,Planning General/Income,PLN00,Postage & Distribution,0370,76.42,Royal Mail,101554,31/05/2012,10167682
Economy Development & Culture,Visitor Centre,VSC00,Postage & Distribution,0370,6.15,Royal Mail,101554,31/05/2012,10167682
Economy Development & Culture,Car Parks General,CPK01,Postage & Distribution,0370,53.15,Royal Mail,101554,31/05/2012,10167682
Resources & Corporate Governance ,General Administration,WAD00,Postage & Distribution,0370,18.49,Royal Mail,101554,31/05/2012,10167682
Resources & Corporate Governance,Handy man,WHM00,External Contractor & Operator,0742,1925.00,Rugby Plastering Services,101602,10/05/2012,10167008
Housing Revenue Account ,Unplanned Maintenance and Repair,UMR00,R&M External Contractors,0100,2430.93,Rugby Plastering Services,101602,10/05/2012,10167229
Housing Revenue Account ,Unplanned Maintenance and Repair,UMR00,R&M External Contractors,0100,5138.24,Rugby Plastering Services,101602,24/05/2012,10167838
Housing Revenue Account ,Unplanned Maintenance and Repair,UMR00,R&M External Contractors,0100,1714.85,Rugby Plastering Services,101602,31/05/2012,10168140
Sustainable Environment ,Caldecott Park/Town Centre Area,PKS00,External Contractor & Operator,0742,418.23,Sapcote Site Supplies Ltd,101606,24/05/2012,10167861
Resources & Corporate Governance,Corporate Property Central Utilities,CPA02,Water Services,0143,2863.48,Severn Trent Water Ltd,101610,03/05/2012,10166827
Resources & Corporate Governance ,Borough Elections,ELC00,Stationery Supplies,0350,1209.80,Shaw & Sons Ltd,101612,10/05/2012,10165054
Capital Program ,Disabled Adaptations,HCR01,Capital Contract Payments,5000,4067.00,Stannah Stairlifts Ltd,101623,10/05/2012,10166978
Capital Program ,RG Disabled Facilities,REN01,Capital Grants,5014,1830.00,Stannah Stairlifts Ltd,101623,17/05/2012,10167350
Capital Program ,RG Disabled Facilities,REN01,Capital Grants,5014,2440.00,Stannah Stairlifts Ltd,101623,24/05/2012,10167828
Resources & Corporate Governance ,WSU Depot,WDP00,Telephone Expenses,0371,548.37,Secom Plc,101671,10/05/2012,10166763
Resources & Corporate Governance ,Domestic Waste Collection,WWC00,Vehicle Running Costs,0201,577.37,HI-Q Motorway,101736,10/05/2012,10166791
Resources & Corporate Governance ,Street Cleansing,WSC00,Vehicle Running Costs,0201,58.00,HI-Q Motorway,101736,10/05/2012,10166794
Resources & Corporate Governance ,Domestic Waste Collection,WWC00,Vehicle Running Costs,0201,1114.74,HI-Q Motorway,101736,10/05/2012,10166794
Resources & Corporate Governance ,Domestic Waste Collection,WWC00,Vehicle Running Costs,0201,249.45,HI-Q Motorway,101736,17/05/2012,10167195
Resources & Corporate Governance ,Trade Waste Collection,WWC01,Vehicle Running Costs,0201,249.45,HI-Q Motorway,101736,17/05/2012,10167195
Resources & Corporate Governance ,Trade Waste Collection,WWC01,Vehicle Running Costs,0201,46.00,HI-Q Motorway,101736,31/05/2012,10167890
Resources & Corporate Governance ,Domestic Waste Collection,WWC00,Vehicle Running Costs,0201,422.00,HI-Q Motorway,101736,31/05/2012,10167890
Resources & Corporate Governance ,Trade Waste Collection,WWC01,Vehicle Running Costs,0201,204.00,HI-Q Motorway,101736,31/05/2012,10168023
Resources & Corporate Governance ,Domestic Waste Collection,WWC00,Vehicle Running Costs,0201,622.59,HI-Q Motorway,101736,31/05/2012,10168023
Resources & Corporate Governance ,TREE WORKS,WGM01,Personal Protective Clothing,0340,662.00,Tudor Environmental,101743,03/05/2012,10166024
Resources & Corporate Governance ,TREE WORKS,WGM01,Tools,0304,1333.14,Tudor Environmental,101743,03/05/2012,10166025
Resources & Corporate Governance ,Domestic Waste Collection,WWC00,Vehicle Repair and Maintenance,0200,1104.35,Terberg Matec Uk,101761,10/05/2012,10167201
Economy Development & Culture,Decrim. of Car Parking on street parking,DPE02,Telephone Expenses,0371,936.73,Vodafone Corporate Ltd,101831,03/05/2012,10166975
Economy Development & Culture,Car Parks General,CPK01,Telephone Expenses,0371,51.56,Vodafone Corporate Ltd,101831,03/05/2012,10166975
Economy Development & Culture,Building Regulation Fee Earning Account,BCS99,Telephone Expenses,0371,3.59,Vodafone Corporate Ltd,101831,03/05/2012,10166976
Housing Revenue Account ,Control Centre (HRA),CCE00,Telephone Expenses,0371,22.33,Vodafone Corporate Ltd,101831,03/05/2012,10166976
Sustainable Inclusive Communities,Housing Options Team,HOT00,Telephone Expenses,0371,53.00,Vodafone Corporate Ltd,101831,03/05/2012,10166976
Housing Revenue Account ,Supervision and Management General,MAN00,Telephone Expenses,0371,335.80,Vodafone Corporate Ltd,101831,03/05/2012,10166976
Housing Revenue Account ,Estate Management,MAN22,Telephone Expenses,0371,54.00,Vodafone Corporate Ltd,101831,03/05/2012,10166976
Housing Revenue Account ,Sheltered Housing,AGP00,Telephone Expenses,0371,353.82,Vodafone Corporate Ltd,101831,03/05/2012,10166976
Economy Development & Culture,Building Control Services,BCS00,Telephone Expenses,0371,2.70,Vodafone Corporate Ltd,101831,03/05/2012,10166976
Resources & Corporate Governance ,Council Tax and NNDR Collection,CTX01,Telephone Expenses,0371,6.92,Vodafone Corporate Ltd,101831,03/05/2012,10166976
Housing Revenue Account ,Multi-Storey Flats,MSF00,Telephone Expenses,0371,10.53,Vodafone Corporate Ltd,101831,03/05/2012,10166976
Sustainable Environment ,Grass Cutting,PKS13,External Contractor & Operator,0742,578.00,Withybrook Parish Council,101849,24/05/2012,10167924
Resources & Corporate Governance,Handy man,WHM00,Materials,0303,543.17,Wolseley UK Limited,101851,24/05/2012,10167723
Resources & Corporate Governance ,Human Resources Centralised Services,RES31,Training fees,0011,550.00,West Midlands Councils,101880,10/05/2012,10167298
Housing Revenue Account ,Unplanned Maintenance and Repair,UMR00,R&M External Contractors,0100,4559.50,Warwickshire County Council,101893,10/05/2012,10166834
Economy Development & Culture,Decrim. of Car Parking on street parking,DPE02,Contributions & Donations,1100,123096.00,Warwickshire County Council,101893,24/05/2012,10167773
Resources & Corporate Governance ,Land Charges,LCH00,Payments to Other Local Authorities,0710,6917.40,Warwickshire County Council,101893,31/05/2012,10167823
Housing Revenue Account ,Unplanned Maintenance and Repair,UMR00,R&M External Contractors,0100,3163.03,Warwickshire County Council,101893,24/05/2012,10167903
Resources & Corporate Governance ,Domestic Waste Collection,WWC00,Other Insurance Excesses,0441,100.00,Watling JCB Limited,101922,10/05/2012,10167137
Capital Program ,Heating Upgrades,HIM01,Capital Contract Payments,5000,5407.50,Adroit Services Ltd,101939,10/05/2012,10166804
Resources & Corporate Governance,Handy man,WHM00,External Contractor & Operator,0742,966.91,Adroit Services Ltd,101939,03/05/2012,10166813
Housing Revenue Account ,Unplanned Maintenance and Repair,UMR00,R&M External Contractors,0100,717.43,Adroit Services Ltd,101939,03/05/2012,10166891
Capital Program ,Disabled Adaptations,HCR01,Capital Contract Payments,5000,194.42,Adroit Services Ltd,101939,03/05/2012,10166891
Housing Revenue Account ,Unplanned Maintenance and Repair,UMR00,R&M External Contractors,0100,826.96,Adroit Services Ltd,101939,10/05/2012,10167227
Capital Program ,Heating Upgrades,HIM01,Capital Contract Payments,5000,1567.54,Adroit Services Ltd,101939,10/05/2012,10167227
Capital Program ,Heating Upgrades,HIM01,Capital Contract Payments,5000,5407.50,Adroit Services Ltd,101939,24/05/2012,10167364
Housing Revenue Account ,Unplanned Maintenance and Repair,UMR00,R&M External Contractors,0100,1140.71,Adroit Services Ltd,101939,17/05/2012,10167486
Capital Program ,Disabled Adaptations,HCR01,Capital Contract Payments,5000,97.21,Adroit Services Ltd,101939,24/05/2012,10167841
Housing Revenue Account ,Unplanned Maintenance and Repair,UMR00,R&M External Contractors,0100,1072.23,Adroit Services Ltd,101939,24/05/2012,10167841
Capital Program ,Pettiver Crescent,PCH00,Capital Contract Payments,5000,70.04,Adroit Services Ltd,101939,24/05/2012,10167841
Capital Program ,Heating Upgrades,HIM01,Capital Contract Payments,5000,60.29,Adroit Services Ltd,101939,24/05/2012,10167841
Capital Program ,Disabled Adaptations,HCR01,Capital Contract Payments,5000,327.39,Adroit Services Ltd,101939,31/05/2012,10168143
Capital Program ,Pettiver Crescent,PCH00,Capital Contract Payments,5000,35.02,Adroit Services Ltd,101939,31/05/2012,10168143
Capital Program ,Heating Upgrades,HIM01,Capital Contract Payments,5000,60.29,Adroit Services Ltd,101939,31/05/2012,10168143
Housing Revenue Account ,Unplanned Maintenance and Repair,UMR00,R&M External Contractors,0100,797.99,Adroit Services Ltd,101939,31/05/2012,10168143
Resources & Corporate Governance ,Highways,WHG00,Materials,0303,522.77,BURDENS LTD,102070,17/05/2012,10167025
Resources & Corporate Governance,Handy man,WHM00,Materials,0303,420.00,BURDENS LTD,102070,17/05/2012,10167025
Resources & Corporate Governance,Corporate Property R&M,CPA01,R&M External Contractors,0100,705.00,Wallgate Ltd,107425,17/05/2012,10167079
Resources & Corporate Governance,Corporate Property R&M,CPA01,R&M External Contractors,0100,564.00,Wallgate Ltd,107425,17/05/2012,10167080
Resources & Corporate Governance ,"Communications, Consultation and Information Team",BTR20,Publicity & Marketing,0377,530.19,Johnston Publishing Ltd,107468,03/05/2012,10166810
Resources & Corporate Governance ,"Communications, Consultation and Information Team",BTR20,Publicity & Marketing,0377,443.52,Johnston Publishing Ltd,107468,03/05/2012,10166985
Resources & Corporate Governance ,"Communications, Consultation and Information Team",BTR20,Publicity & Marketing,0377,530.19,Johnston Publishing Ltd,107468,24/05/2012,10167170
Resources & Corporate Governance ,"Communications, Consultation and Information Team",BTR20,Publicity & Marketing,0377,530.19,Johnston Publishing Ltd,107468,24/05/2012,10167456
Resources & Corporate Governance ,"Communications, Consultation and Information Team",BTR20,Publicity & Marketing,0377,530.19,Johnston Publishing Ltd,107468,24/05/2012,10167869
Resources & Corporate Governance ,"Communications, Consultation and Information Team",BTR20,Publicity & Marketing,0377,499.00,Johnston Publishing Ltd,107468,31/05/2012,10168169
Housing Revenue Account ,Supervision and Management General,MAN00,Payments to Other Local Authorities,0710,6180.00,Nuneaton & Bedworth Borough Council,108060,31/05/2012,10166641
Resources & Corporate Governance ,Human Resources,RES30,Payments to Other Local Authorities,0710,11780.11,Nuneaton & Bedworth Borough Council,108060,10/05/2012,10166882
Economy Development & Culture,AGM Conservation/Documentation,AGM01,Other Miscellaneous Expenses,0444,1395.63,Spectra Plastics Ltd,108148,31/05/2012,10167743
Resources & Corporate Governance ,Central Telephone Service,TEL00,Telephone Expenses,0371,1014.08,British Telecommunications PLC,108425,03/05/2012,10166595
Capital Program ,Capital Partnership Fund,CGR01,Capital Grants,5014,6000.00,St Andrews Church House,109145,31/05/2012,10168055
Sustainable Inclusive Communities,Woodside Park,TVR00,Other Agencies,0734,1026.00,Environment Agency,109492,03/05/2012,10166830
Resources & Corporate Governance ,Grounds Maintenance,WGM00,Materials,0303,819.80,Boughton Loam Limited,110360,10/05/2012,10166769
Resources & Corporate Governance ,Garage Internal,WVR01,Materials,0303,34727.32,Watson Petroleum,110361,10/05/2012,10167026
Resources & Corporate Governance ,Garage Internal,WVR01,Materials,0303,22583.41,Watson Petroleum,110361,31/05/2012,10167886
Resources & Corporate Governance,Handy man,WHM00,Materials,0303,722.45,Linnell Bros. Ltd,110449,17/05/2012,10167336
Sustainable Environment ,Caldecott Park/Town Centre Area,PKS00,R&M External Contractors,0100,3000.00,P D Timms,111508,31/05/2012,10168045
Resources & Corporate Governance,Central Business Support Services,CSS15,Photocopying,0354,3501.14,Ricoh UK Limited,111532,03/05/2012,10166609
Resources & Corporate Governance,Central Business Support Services,CSS15,Photocopying,0354,2528.18,Ricoh UK Limited,111532,03/05/2012,10166640
Resources & Corporate Governance,Central Business Support Services,CSS15,Photocopying,0354,842.31,Ricoh UK Limited,111532,03/05/2012,10166645
Resources & Corporate Governance,Central Business Support Services,CSS15,Photocopying,0354,1162.33,Ricoh UK Limited,111532,24/05/2012,10167909
Resources & Corporate Governance,Central Business Support Services,CSS15,Photocopying,0354,4353.39,Ricoh UK Limited,111532,31/05/2012,10167911
Resources & Corporate Governance,Central Business Support Services,CSS15,Photocopying,0354,518.14,Ricoh UK Limited,111532,31/05/2012,10168179
Economy Development & Culture,Visitor Centre,VSC00,Maintenance of Equipment,0301,1150.00,Business Reply Ltd,112717,10/05/2012,10166922
Sustainable Inclusive Communities,Local Council Tax Support,HBA10,Software Maintenance,0374,5500.00,Civica UK Ltd,112724,03/05/2012,10166731
Resources & Corporate Governance ,Maintenance of Customer Services Systems,CIS21,Software Maintenance,0374,2529.04,Civica UK Ltd,112724,10/05/2012,10167112
Resources & Corporate Governance ,Maintenance of Customer Services Systems,CIS21,Software Maintenance,0374,1312.84,Civica UK Ltd,112724,31/05/2012,10167940
Resources & Corporate Governance ,Domestic Waste Collection,WWC00,Agency Staff,0003,508.37,Extra Personnel Limited,112996,10/05/2012,10166017
Resources & Corporate Governance ,Domestic Waste Collection,WWC00,Agency Staff,0003,508.37,Extra Personnel Limited,112996,10/05/2012,10166928
Resources & Corporate Governance ,Domestic Waste Collection,WWC00,Agency Staff,0003,689.17,Extra Personnel Limited,112996,10/05/2012,10167213
Resources & Corporate Governance ,Domestic Waste Collection,WWC00,Agency Staff,0003,508.37,Extra Personnel Limited,112996,17/05/2012,10167513
Not in a portfolio,Principal Road Maintenance,HIA01,Hedges and Trees,8017,502.50,Acorn Environmental Management Group Ltd,113313,10/05/2012,10167178
Sustainable Inclusive Communities,CL Grants,CGS00,Grants To Voluntary Organisations,0720,14000.00,Relate Rugby & N E Warwickshire Ltd,113618,10/05/2012,10166741
Economy Development & Culture,Visitor Centre,VSC00,Purchases for Resale,0305,636.75,MLE Pyrotechnics Ltd,114004,10/05/2012,10167163
Economy Development & Culture,Ken Marriott Leisure Centre,KML00,External Contractor & Operator,0742,24306.04,DC Leisure Management Ltd (Otium),114443,03/05/2012,10166831
Economy Development & Culture,Ken Marriott Leisure Centre,KML00,External Contractor & Operator,0742,24306.04,DC Leisure Management Ltd (Otium),114443,10/05/2012,10167349
Resources & Corporate Governance ,Council Tax and NNDR Collection,CTX01,Telephone Expenses,0371,81.00,Star Technology Services,114533,10/05/2012,10165956
Economy Development & Culture,Car Parks General,CPK01,New Equipment,0300,16.20,Star Technology Services,114533,10/05/2012,10165956
Economy Development & Culture,Visitor Centre,VSC00,Telephone Expenses,0371,511.08,Star Technology Services,114533,10/05/2012,10165956
Housing Revenue Account ,Control Centre (HRA),CCE00,New Equipment,0300,81.00,Star Technology Services,114533,10/05/2012,10165956
Economy Development & Culture,Decrim. of Car Parking on street parking,DPE02,New Equipment,0300,64.80,Star Technology Services,114533,10/05/2012,10165956
Resources & Corporate Governance ,Customer and Information Strategy,CIS10,Software Maintenance,0374,81.00,Star Technology Services,114533,10/05/2012,10165956
Economy Development & Culture,Art Gallery and Museum,AGM00,Maintenance of Equipment,0301,81.00,Star Technology Services,114533,10/05/2012,10165956
Economy Development & Culture,Art Gallery and Museum,AGM00,Telephone Expenses,0371,511.08,Star Technology Services,114533,10/05/2012,10165956
Resources & Corporate Governance ,Customer and Information Strategy,CIS10,Telephone Expenses,0371,2242.20,Star Technology Services,114533,10/05/2012,10165956
Resources & Corporate Governance ,WSU Depot,WDP00,Telephone Expenses,0371,81.00,Star Technology Services,114533,10/05/2012,10165956
Housing Revenue Account ,Unplanned Maintenance and Repair,UMR00,R&M External Contractors,0100,1341.40,Temple Lifts Ltd,114738,10/05/2012,10167089
Sustainable Environment ,Cemeteries General,CEM00,R&M External Contractors,0100,671.50,Streetmaster (South Wales) Ltd,114898,17/05/2012,10167321
Resources & Corporate Governance,Corporate Property Central Utilities,CPA02,Electricity,0130,7983.05,Southern Electric,118976,24/05/2012,10167774
Resources & Corporate Governance,Corporate Property Central Utilities,CPA02,Electricity,0130,363.65,Southern Electric,118976,31/05/2012,10167941
Resources & Corporate Governance ,WSU Depot,WDP00,Electricity,0130,2275.29,Southern Electric,118976,31/05/2012,10167941
Resources & Corporate Governance ,Street Cleansing,WSC00,Agency Staff,0003,313.88,Taskforce Recruitment Ltd,119614,10/05/2012,10167207
Resources & Corporate Governance ,Domestic Waste Collection,WWC00,Agency Staff,0003,149.55,Taskforce Recruitment Ltd,119614,10/05/2012,10167207
Resources & Corporate Governance ,Street Cleansing,WSC00,Agency Staff,0003,436.24,Taskforce Recruitment Ltd,119614,17/05/2012,10167497
Sustainable Inclusive Communities,CL Grants,CGS00,Grants To Voluntary Organisations,0720,3000.00,Overslade Community Association,119698,31/05/2012,10168044
Resources & Corporate Governance ,Toilet Cleaning,WBC01,Agency Staff,0003,158.20,G-Staff Ltd,120173,03/05/2012,10166819
Resources & Corporate Governance ,Street Cleansing,WSC00,Agency Staff,0003,589.17,G-Staff Ltd,120173,03/05/2012,10166819
Resources & Corporate Governance ,Domestic Waste Collection,WWC00,Agency Staff,0003,1095.70,G-Staff Ltd,120173,03/05/2012,10166819
Resources & Corporate Governance ,Street Cleansing,WSC00,Agency Staff,0003,74.78,G-Staff Ltd,120173,10/05/2012,10167205
Resources & Corporate Governance ,Domestic Waste Collection,WWC00,Agency Staff,0003,1628.94,G-Staff Ltd,120173,10/05/2012,10167205
Resources & Corporate Governance ,Domestic Waste Collection,WWC00,Agency Staff,0003,1352.85,G-Staff Ltd,120173,17/05/2012,10167498
Resources & Corporate Governance ,Street Cleansing,WSC00,Agency Staff,0003,69.79,G-Staff Ltd,120173,24/05/2012,10167862
Resources & Corporate Governance ,Domestic Waste Collection,WWC00,Agency Staff,0003,2412.28,G-Staff Ltd,120173,24/05/2012,10167862
Sustainable Inclusive Communities,Housing Options Team,HOT00,Agency Staff,0003,702.42,Venn Group Recruitment Solutions,121594,03/05/2012,10166489
Sustainable Inclusive Communities,Housing Options Team,HOT00,Agency Staff,0003,852.11,Venn Group Recruitment Solutions,121594,03/05/2012,10166837
Sustainable Inclusive Communities,Housing Options Team,HOT00,Agency Staff,0003,852.11,Venn Group Recruitment Solutions,121594,10/05/2012,10167234
Resources & Corporate Governance ,Maintenance of Customer Services Systems,CIS21,Software Maintenance,0374,1233.75,Northgate Information Solutions UK Ltd,121606,31/05/2012,10167939
Housing Revenue Account ,Supervision and Management General,MAN00,Publicity & Marketing,0377,1380.00,Janus Kreative,121748,31/05/2012,10168005
Capital Program ,Pettiver Crescent,PCH00,Capital Contract Payments,5000,4675.42,REDACTED PERSONAL DATA,122445,17/05/2012,10167689
Housing Revenue Account ,Maintenance of Open Spaces,MOS00,External Contractor & Operator,0742,444.10,Brinklow Quarry,122921,10/05/2012,10167111
Resources & Corporate Governance ,Central Telephone Service,TEL00,Telephone Expenses,0371,1109.10,Cable & Wireless,123224,10/05/2012,10167362
Resources & Corporate Governance ,Customer and Information Strategy,CIS10,Hardware Maintenance,0376,999.00,Cable & Wireless,123224,17/05/2012,10167663
Resources & Corporate Governance ,Grounds Maintenance,WGM00,Materials,0303,3180.00,Rigby Taylor Ltd,123342,31/05/2012,10167860
Resources & Corporate Governance ,Domestic Waste Collection,WWC00,Materials,0303,27303.60,SSI Schaefer Ltd,123543,17/05/2012,10167494
Capital Program ,Pettiver Crescent,PCH00,Capital Contract Payments,5000,1000.00,REDACTED PERSONAL DATA,125660,31/05/2012,10168319
Resources & Corporate Governance ,Garage Internal,WVR01,Materials,0303,459.22,Shell U.K. Oil Products Limited,125672,10/05/2012,10167182
Sustainable Environment,Regulatory Services,REG00,Software/Equipment Licences,0379,983.81,Airwave Solutions Limited,126436,10/05/2012,10167166
Resources & Corporate Governance ,TREE WORKS,WGM01,Vehicle Repair and Maintenance,0200,547.90,Guest Trucks,126437,24/05/2012,10167747
Resources & Corporate Governance,Handy man,WHM00,External Contractor & Operator,0742,487.50,M P Hudson & Son,129334,03/05/2012,10166993
Resources & Corporate Governance,Handy man,WHM00,External Contractor & Operator,0742,597.50,M P Hudson & Son,129334,10/05/2012,10167373
Resources & Corporate Governance,Handy man,WHM00,External Contractor & Operator,0742,520.00,M P Hudson & Son,129334,17/05/2012,10167573
Resources & Corporate Governance,Handy man,WHM00,External Contractor & Operator,0742,580.00,M P Hudson & Son,129334,24/05/2012,10167883
Resources & Corporate Governance,Handy man,WHM00,External Contractor & Operator,0742,952.50,M P Hudson & Son,129334,31/05/2012,10168216
Resources & Corporate Governance ,Borough Elections,ELC00,Postal Voting Stationery,0360,5734.93,Print.UK.Com,129503,10/05/2012,10166664
Resources & Corporate Governance,Central Business Support Services,CSS15,Stationery Supplies,0350,450.71,Lyreco,129956,10/05/2012,10167130
Resources & Corporate Governance,Central Business Support Services,CSS15,Stationery Supplies,0350,341.99,Lyreco,129956,10/05/2012,10167131
Resources & Corporate Governance ,Borough Elections,ELC00,Stationery Supplies,0350,75.20,Lyreco,129956,10/05/2012,10167131
Economy Development & Culture,Town Centre CCTV and Management,TVM00,External Contractor & Operator,0742,20000.00,Rugby First Limited - Town Centre,130214,03/05/2012,10166646
Resources & Corporate Governance ,"Communications, Consultation and Information Team",BTR20,Consultation,0378,5500.00,Rugby FM,131249,03/05/2012,10166808
Resources & Corporate Governance ,Grounds Maintenance,WGM00,External Contractor & Operator,0742,1618.00,I D Welding & Fabrications,131407,17/05/2012,10167127
Resources & Corporate Governance ,Grounds Maintenance,WGM00,External Contractor & Operator,0742,1530.00,I D Welding & Fabrications,131407,17/05/2012,10167128
Sustainable Environment,Regulatory Services,REG00,External Contractor & Operator,0742,1000.00,Aecom Ltd,131603,31/05/2012,10168178
Economy Development & Culture,Car Parks General,CPK01,Cash Collection,0744,915.16,Jade Security Services Ltd,131711,17/05/2012,10167462
Economy Development & Culture,Decrim. of Car Parking on street parking,DPE02,Cash Collection,0744,624.72,Jade Security Services Ltd,131711,17/05/2012,10167463
Housing Revenue Account ,Unplanned Maintenance and Repair,UMR00,R&M External Contractors,0100,1395.00,Challen Commercial Investigations Ltd T/A Ensafe,131876,24/05/2012,10167771
Capital Program ,RG Disabled Facilities,REN01,Capital Grants,5014,6088.50,D K Builders,131946,24/05/2012,10167763
Capital Program ,RG Disabled Facilities,REN01,Capital Grants,5014,855.00,D K Builders,131946,31/05/2012,10168051
Resources & Corporate Governance ,Corporate Assurance,BTR40,External Contractor & Operator,0742,7560.00,HW Controls & Assurance,132240,31/05/2012,10167605
Resources & Corporate Governance ,Highways,WHG00,Materials,0303,599.43,Breedon Aggregates England Limited,133309,17/05/2012,10166998
Resources & Corporate Governance,Handy man,WHM00,External Contractor & Operator,0742,810.00,Homecare Decorating,133884,03/05/2012,10166697
Resources & Corporate Governance,Handy man,WHM00,External Contractor & Operator,0742,1010.00,Homecare Decorating,133884,24/05/2012,10166758
Resources & Corporate Governance,Handy man,WHM00,External Contractor & Operator,0742,487.00,Homecare Decorating,133884,24/05/2012,10166759
Resources & Corporate Governance,Handy man,WHM00,External Contractor & Operator,0742,810.00,Homecare Decorating,133884,24/05/2012,10166902
Resources & Corporate Governance,Handy man,WHM00,External Contractor & Operator,0742,1105.00,Homecare Decorating,133884,17/05/2012,10167310
Resources & Corporate Governance,Handy man,WHM00,External Contractor & Operator,0742,1105.00,Homecare Decorating,133884,17/05/2012,10167311
Resources & Corporate Governance,Handy man,WHM00,External Contractor & Operator,0742,2327.50,Homecare Decorating,133884,17/05/2012,10167312
Housing Revenue Account ,Unplanned Maintenance and Repair,UMR00,R&M External Contractors,0100,2026.10,Sunfish Services Ltd,133886,10/05/2012,10167225
Housing Revenue Account ,Unplanned Maintenance and Repair,UMR00,R&M External Contractors,0100,1150.17,Delec Ltd,133887,03/05/2012,10166894
Housing Revenue Account ,Unplanned Maintenance and Repair,UMR00,R&M External Contractors,0100,1209.03,Delec Ltd,133887,03/05/2012,10166982
Housing Revenue Account ,Unplanned Maintenance and Repair,UMR00,R&M External Contractors,0100,931.83,Delec Ltd,133887,24/05/2012,10167389
Housing Revenue Account ,Unplanned Maintenance and Repair,UMR00,R&M External Contractors,0100,1368.64,Delec Ltd,133887,17/05/2012,10167489
Housing Revenue Account ,Unplanned Maintenance and Repair,UMR00,R&M External Contractors,0100,2606.39,Delec Ltd,133887,24/05/2012,10167844
Capital Program ,Pettiver Crescent,PCH00,Capital Contract Payments,5000,74.20,Delec Ltd,133887,24/05/2012,10167844
Housing Revenue Account ,Unplanned Maintenance and Repair,UMR00,R&M External Contractors,0100,1275.18,Delec Ltd,133887,31/05/2012,10168085
Capital Program ,Pettiver Crescent,PCH00,Capital Contract Payments,5000,37.10,Delec Ltd,133887,31/05/2012,10168085
Sustainable Inclusive Communities,Woodside Park,TVR00,R&M External Contractors,0100,11.05,Delec Ltd,133887,31/05/2012,10168085
Economy Development & Culture,Grants and Subscriptions,LGS00,Grants To Voluntary Organisations,0720,500.00,Warwickshire Racial Equality Partnership,134811,03/05/2012,10167102
Sustainable Inclusive Communities,CL Grants,CGS00,Grants To Voluntary Organisations,0720,3000.00,Brownsover Community Association,135180,24/05/2012,10167453
Capital Program ,Pettiver Crescent,PCH00,Capital Contract Payments,5000,1000.00,REDACTED PERSONAL DATA,135448,03/05/2012,10167090
Sustainable Environment,Regulatory Services,REG00,Car Lease Costs,0222,-426.24,GE Commercial Finance (Custom Fleet),137111,10/05/2012,10165172
,Balance Sheet,BS,Car Leasing Scheme,9244,601.16,GE Commercial Finance (Custom Fleet),137111,10/05/2012,10166059
Sustainable Environment,Regulatory Services,REG00,Car Lease Costs,0222,426.24,GE Commercial Finance (Custom Fleet),137111,10/05/2012,10167139
Resources & Corporate Governance ,Borough Elections,ELC00,External Printing,0352,4772.58,Smith & Ouzman Ltd,138682,10/05/2012,10167174
Resources & Corporate Governance ,Town Hall,OFF00,Contract Cleaning,0170,4280.55,Regent Office Care Ltd T/A Regent Cleaning,138934,03/05/2012,10166699
Resources & Corporate Governance ,WSU Depot,WDP00,Contract Cleaning,0170,219.00,Regent Office Care Ltd T/A Regent Cleaning,138934,03/05/2012,10166699
Resources & Corporate Governance ,Grounds Maintenance,WGM00,Contract Cleaning,0170,147.50,Regent Office Care Ltd T/A Regent Cleaning,138934,03/05/2012,10166699
Resources & Corporate Governance ,Grounds Maintenance,WGM00,Contract Cleaning,0170,147.50,Regent Office Care Ltd T/A Regent Cleaning,138934,17/05/2012,10167356
Resources & Corporate Governance ,Town Hall,OFF00,Contract Cleaning,0170,4280.55,Regent Office Care Ltd T/A Regent Cleaning,138934,17/05/2012,10167356
Resources & Corporate Governance ,WSU Depot,WDP00,Contract Cleaning,0170,219.00,Regent Office Care Ltd T/A Regent Cleaning,138934,17/05/2012,10167356
Housing Revenue Account ,Unplanned Maintenance and Repair,UMR00,R&M External Contractors,0100,2761.52,Regent Office Care Ltd T/A Regent Cleaning,138934,10/05/2012,10167390
Housing Revenue Account ,Unplanned Maintenance and Repair,UMR00,R&M External Contractors,0100,1112.51,Regent Office Care Ltd T/A Regent Cleaning,138934,17/05/2012,10167490
Housing Revenue Account ,Unplanned Maintenance and Repair,UMR00,R&M External Contractors,0100,2138.68,Regent Office Care Ltd T/A Regent Cleaning,138934,31/05/2012,10168086
Housing Revenue Account ,Asbestos Surveys,UMR05,R&M External Contractors,0100,130.00,Rider Levett Bucknall UK Ltd,139918,31/05/2012,10168125
Capital Program ,Electric to Gas Conversions,HIM04,Capital Contract Payments,5000,1170.00,Rider Levett Bucknall UK Ltd,139918,31/05/2012,10168125
Capital Program ,Heating Upgrades,HIM01,Capital Contract Payments,5000,5330.00,Rider Levett Bucknall UK Ltd,139918,31/05/2012,10168125
Capital Program ,Heating Upgrades,HIM01,Capital Contract Payments,5000,4550.00,Rider Levett Bucknall UK Ltd,139918,31/05/2012,10168126
Capital Program ,Electric to Gas Conversions,HIM04,Capital Contract Payments,5000,4160.00,Rider Levett Bucknall UK Ltd,139918,31/05/2012,10168126
Economy Development & Culture,Planning Control,PLN01,Consultancy Costs,0740,650.00,P Rhodes,140076,10/05/2012,10167177
Resources & Corporate Governance ,Domestic Waste Collection,WWC00,Vehicle Repair and Maintenance,0200,609.97,Midlands Truck & Van Ltd,140322,03/05/2012,10166720
Resources & Corporate Governance ,Domestic Waste Collection,WWC00,Vehicle Repair and Maintenance,0200,1355.42,Midlands Truck & Van Ltd,140322,03/05/2012,10166724
Resources & Corporate Governance ,Domestic Waste Collection,WWC00,Vehicle Repair and Maintenance,0200,426.25,Midlands Truck & Van Ltd,140322,10/05/2012,10167209
Resources & Corporate Governance ,Domestic Waste Collection,WWC00,Vehicle Repair and Maintenance,0200,570.53,Midlands Truck & Van Ltd,140322,17/05/2012,10167544
Resources & Corporate Governance ,Domestic Waste Collection,WWC00,Vehicle Repair and Maintenance,0200,438.58,Midlands Truck & Van Ltd,140322,31/05/2012,10167660
Resources & Corporate Governance ,Domestic Waste Collection,WWC00,Vehicle Repair and Maintenance,0200,593.03,Midlands Truck & Van Ltd,140322,31/05/2012,10168040
Resources & Corporate Governance ,Maintenance of Customer Services Systems,CIS21,Consultancy Costs,0740,900.29,Midland Software Ltd,140463,03/05/2012,10166825
Resources & Corporate Governance ,"Communications, Consultation and Information Team",BTR20,Consultation,0378,1800.00,Touch Radio/Rugby FM,140623,24/05/2012,10167662
Capital Program ,Bathroom Modifications,HIS01,Capital Contract Payments,5000,17160.00,Ian Williams Ltd,142238,03/05/2012,10165849
Capital Program ,Kitchen Modifications,HIK10,Capital Contract Payments,5000,16681.35,Ian Williams Ltd,142238,03/05/2012,10165850
Capital Program ,Open Spaces Refurbishment,LEI08,Capital Contract Payments,5000,4200.00,Dura Sport (Leisure Care) Ltd,143619,10/05/2012,10166716
Resources & Corporate Governance ,Members Expenses,MEM00,Conference & Seminar Fees,0401,495.00,Local Government Association,144471,03/05/2012,10166924
Resources & Corporate Governance ,Members Expenses,MEM00,Conference & Seminar Fees,0401,495.00,Local Government Association,144471,03/05/2012,10166925
Economy Development & Culture,Car Parks General,CPK01,Other Agencies,0734,385.45,PATROL,144963,03/05/2012,10166912
Economy Development & Culture,Decrim. of Car Parking on street parking,DPE02,Other Agencies,0734,1541.80,PATROL,144963,03/05/2012,10166912
Housing Revenue Account ,Supervision and Management General,MAN00,Professional Subscriptions,0017,2000.00,Association of Retained Council Housing Ltd,145015,24/05/2012,10167700
Housing Revenue Account ,Control Centre CCTV,CCE01,External Contractor & Operator,0742,15432.24,Securitas Security Personnel Ltd,145079,03/05/2012,10166886
Housing Revenue Account ,Property Maintenance,MAN23,Agency Staff,0003,1174.50,James Andrews Recruitment Solutions Ltd,145100,03/05/2012,10167081
Sustainable Inclusive Communities,Housing Strategy & Enabling,HSE00,Agency Staff,0003,520.22,James Andrews Recruitment Solutions Ltd,145100,17/05/2012,10167392
Housing Revenue Account ,Property Maintenance,MAN23,Agency Staff,0003,744.73,James Andrews Recruitment Solutions Ltd,145100,10/05/2012,10167393
Housing Revenue Account ,Property Maintenance,MAN23,Agency Staff,0003,957.00,James Andrews Recruitment Solutions Ltd,145100,17/05/2012,10167674
Housing Revenue Account ,Property Maintenance,MAN23,Agency Staff,0003,826.50,James Andrews Recruitment Solutions Ltd,145100,17/05/2012,10167675
Housing Revenue Account ,Property Maintenance,MAN23,Agency Staff,0003,938.25,James Andrews Recruitment Solutions Ltd,145100,17/05/2012,10167676
Housing Revenue Account ,Property Maintenance,MAN23,Agency Staff,0003,1205.09,James Andrews Recruitment Solutions Ltd,145100,24/05/2012,10167937
Housing Revenue Account ,Property Maintenance,MAN23,Agency Staff,0003,1238.85,James Andrews Recruitment Solutions Ltd,145100,31/05/2012,10168308
Sustainable Inclusive Communities,CL Grants,CGS00,Grants To Voluntary Organisations,0720,15000.00,Rugby Credit Union,145332,10/05/2012,10166740
Resources & Corporate Governance ,Domestic Waste Collection,WWC00,Agency Staff,0003,-544.90,Blue Arrow Limited,145492,17/05/2012,10165644
Resources & Corporate Governance ,Domestic Waste Collection,WWC00,Agency Staff,0003,633.39,Blue Arrow Limited,145492,17/05/2012,10165814
Resources & Corporate Governance ,Street Cleansing,WSC00,Agency Staff,0003,483.39,Blue Arrow Limited,145492,10/05/2012,10166009
Resources & Corporate Governance ,Domestic Waste Collection,WWC00,Agency Staff,0003,175.95,Blue Arrow Limited,145492,10/05/2012,10166009
Resources & Corporate Governance ,Domestic Waste Collection,WWC00,Agency Staff,0003,544.90,Blue Arrow Limited,145492,17/05/2012,10166010
Resources & Corporate Governance ,Street Cleansing,WSC00,Agency Staff,0003,590.00,Blue Arrow Limited,145492,10/05/2012,10166915
Resources & Corporate Governance ,Domestic Waste Collection,WWC00,Agency Staff,0003,84.08,Blue Arrow Limited,145492,10/05/2012,10166915
Resources & Corporate Governance ,Domestic Waste Collection,WWC00,Agency Staff,0003,-633.39,Blue Arrow Limited,145492,17/05/2012,10166919
Resources & Corporate Governance ,Domestic Waste Collection,WWC00,Agency Staff,0003,-544.90,Blue Arrow Limited,145492,17/05/2012,10166920
Resources & Corporate Governance ,Domestic Waste Collection,WWC00,Agency Staff,0003,544.90,Blue Arrow Limited,145492,17/05/2012,10166921
Resources & Corporate Governance ,Street Cleansing,WSC00,Agency Staff,0003,498.65,Blue Arrow Limited,145492,17/05/2012,10167648
Capital Program ,Pettiver Crescent,PCH00,Capital Contract Payments,5000,4700.00,REDACTED PERSONAL DATA,145688,03/05/2012,10166842
Sustainable Environment ,Street Scene,ENV30,R&M External Contractors,0100,522.58,Opus International Consultants (uk) Ltd,145813,24/05/2012,10167775
Economy Development & Culture,Grants and Subscriptions,LGS00,Grants To Voluntary Organisations,0720,600.00,Rugby Division Guide Association Trust,146153,10/05/2012,10167219
Sustainable Environment ,Caldecott Park/Town Centre Area,PKS00,External Contractor & Operator,0742,760.00,UVS Sign & Design Ltd,146676,17/05/2012,10167039
Resources & Corporate Governance ,Domestic Waste Collection,WWC00,Agency Staff,0003,402.19,Fresh Recruitment Solutions (FRS) Ltd,146784,03/05/2012,10166778
Resources & Corporate Governance,Handy man,WHM00,Agency Staff,0003,38.85,Fresh Recruitment Solutions (FRS) Ltd,146784,03/05/2012,10166778
Resources & Corporate Governance ,Trade Waste Collection,WWC01,Agency Staff,0003,479.56,Fresh Recruitment Solutions (FRS) Ltd,146784,10/05/2012,10167048
Resources & Corporate Governance ,Trade Waste Collection,WWC01,Agency Staff,0003,489.15,Fresh Recruitment Solutions (FRS) Ltd,146784,10/05/2012,10167051
Resources & Corporate Governance,Handy man,WHM00,Agency Staff,0003,454.58,Fresh Recruitment Solutions (FRS) Ltd,146784,10/05/2012,10167054
Resources & Corporate Governance ,Domestic Waste Collection,WWC00,Agency Staff,0003,498.49,Fresh Recruitment Solutions (FRS) Ltd,146784,17/05/2012,10167427
Resources & Corporate Governance,Handy man,WHM00,Agency Staff,0003,418.00,Fresh Recruitment Solutions (FRS) Ltd,146784,17/05/2012,10167430
Resources & Corporate Governance ,Domestic Waste Collection,WWC00,Agency Staff,0003,503.90,Fresh Recruitment Solutions (FRS) Ltd,146784,24/05/2012,10167656
Resources & Corporate Governance ,Domestic Waste Collection,WWC00,Agency Staff,0003,624.73,Fresh Recruitment Solutions (FRS) Ltd,146784,24/05/2012,10167658
Resources & Corporate Governance ,Domestic Waste Collection,WWC00,Agency Staff,0003,498.49,Fresh Recruitment Solutions (FRS) Ltd,146784,31/05/2012,10167961
Resources & Corporate Governance,Handy man,WHM00,Agency Staff,0003,433.68,Fresh Recruitment Solutions (FRS) Ltd,146784,31/05/2012,10167962
Resources & Corporate Governance ,Retired Employees,RET00,Additional Pension Payments,0014,11395.36,WCC Pension Fund,146914,17/05/2012,10167592
Resources & Corporate Governance ,Human Resources Centralised Services,RES31,Training fees,0011,4559.00,Learning Nexus Ltd,146957,03/05/2012,10167092
Capital Program ,Pettiver Crescent,PCH00,Capital Contract Payments,5000,4022.85,REDACTED PERSONAL DATA,147031,03/05/2012,10166841
Resources & Corporate Governance ,Garage Internal,WVR01,Materials,0303,564.00,Skyward Graphics Limited,147050,24/05/2012,10166732
Housing Revenue Account ,Gas Heating Systems,UMR01,R&M External Contractors,0100,1430.00,Integral UK Ltd,147080,10/05/2012,10166321
Housing Revenue Account ,Carbon Monoxide Detectors,UMR07,R&M External Contractors,0100,5156.94,Integral UK Ltd,147080,10/05/2012,10166321
Housing Revenue Account ,Unplanned Maintenance and Repair,UMR00,R&M External Contractors,0100,1764.14,Integral UK Ltd,147080,10/05/2012,10166321
Housing Revenue Account ,Gas Heating Systems,UMR01,R&M External Contractors,0100,38831.94,Integral UK Ltd,147080,10/05/2012,10166977
Housing Revenue Account ,Unplanned Maintenance and Repair,UMR00,R&M External Contractors,0100,86.51,Integral UK Ltd,147080,10/05/2012,10167098
Housing Revenue Account ,Carbon Monoxide Detectors,UMR07,R&M External Contractors,0100,42.27,Integral UK Ltd,147080,10/05/2012,10167098
Housing Revenue Account ,Gas Heating Systems,UMR01,R&M External Contractors,0100,330.00,Integral UK Ltd,147080,10/05/2012,10167098
Resources & Corporate Governance,Corporate Property R&M,CPA01,R&M External Contractors,0100,844.00,OCS Safety (National Cradle Maintenance),147094,31/05/2012,10168035
Resources & Corporate Governance ,Domestic Waste Collection,WWC00,External Contractor & Operator,0742,450.00,James Baxter Haulage Ltd,147159,24/05/2012,10167949
Housing Revenue Account ,Estate Management,MAN22,Movement Incentives,0454,4500.25,REDACTED PERSONAL DATA,147173,17/05/2012,10167525
Capital Program ,Queen's Diamond Jubilee Leisure Centre Project,LEI03,Capital Contract Payments,5000,36892.32,B3 Architects,147190,10/05/2012,10167108
Resources & Corporate Governance ,Human Resources Centralised Services,RES31,Training fees,0011,582.00,Globe Training,147192,24/05/2012,10167734
Sustainable Inclusive Communities,Housing Strategy & Enabling,HSE00,Other,0763,5000.00,Midlands Rural Housing,147202,10/05/2012,10166991
Resources & Corporate Governance,Handy man,WHM00,External Contractor & Operator,0742,511.00,Stephen Lamb Fencing,147298,10/05/2012,10167380
Resources & Corporate Governance,Handy man,WHM00,External Contractor & Operator,0742,616.00,Stephen Lamb Fencing,147298,17/05/2012,10167541
Resources & Corporate Governance,Handy man,WHM00,External Contractor & Operator,0742,588.00,Stephen Lamb Fencing,147298,31/05/2012,10168215
Resources & Corporate Governance,Handy man,WHM00,External Contractor & Operator,0742,868.74,Stewart Groom Flooring,147316,31/05/2012,10168021
Sustainable Environment ,Violence,CAD01,Subscriptions,0421,578.00,Warwickshire Probation Trust,147331,31/05/2012,10168060
Capital Program ,Heating Upgrades,HIM01,Capital Contract Payments,5000,5282.12,Liberty Gas Group,147368,24/05/2012,10167411
Capital Program ,Heating Upgrades,HIM01,Capital Contract Payments,5000,13205.30,Liberty Gas Group,147368,24/05/2012,10167537
Resources & Corporate Governance ,Domestic Waste Collection,WWC00,Contract Hire,0220,1450.00,Trash UK Limited,147379,03/05/2012,10166569
Resources & Corporate Governance ,Domestic Waste Collection,WWC00,Contract Hire,0220,1450.00,Trash UK Limited,147379,17/05/2012,10167549
Housing Revenue Account ,Supervision and Management General,MAN00,Consultancy Costs,0740,6305.00,Howard Ward Associates LLP,147433,17/05/2012,10167466
Resources & Corporate Governance ,Customer and Information Strategy,CIS10,Software Maintenance,0374,11850.00,Commercial IT Services Ltd,147434,17/05/2012,10167222
Capital Program ,Kitchen Modifications,HIK10,Capital Contract Payments,5000,15451.14,Rixonway Kitchens Ltd,147446,24/05/2012,10166344
Capital Program ,Kitchen Modifications,HIK10,Capital Contract Payments,5000,1161.90,Rixonway Kitchens Ltd,147446,24/05/2012,10167610
Housing Revenue Account ,Unplanned Maintenance and Repair,UMR00,R&M External Contractors,0100,25.00,Rixonway Kitchens Ltd,147446,31/05/2012,10168147
Capital Program ,Kitchen Modifications,HIK10,Capital Contract Payments,5000,850.00,Rixonway Kitchens Ltd,147446,31/05/2012,10168147
Resources & Corporate Governance,Handy man,WHM00,Materials,0303,564.85,Robert Pochin Limited,147536,03/05/2012,10166455
Resources & Corporate Governance,Handy man,WHM00,Materials,0303,421.80,Robert Pochin Limited,147536,24/05/2012,10166803
Resources & Corporate Governance,Handy man,WHM00,Materials,0303,1040.74,Robert Pochin Limited,147536,17/05/2012,10167204
Resources & Corporate Governance,Handy man,WHM00,Materials,0303,629.01,Robert Pochin Limited,147536,31/05/2012,10168024
Capital Program ,RG Disabled Facilities,REN01,Capital Grants,5014,4395.00,Pollards Property Solution,147541,31/05/2012,10168181
Capital Program ,Open Spaces Refurbishment,LEI08,Capital Contract Payments,5000,823.00,Gavin Jones (Midlands) Ltd,147569,17/05/2012,10167129
Capital Program ,Open Spaces Refurbishment,LEI08,Capital Contract Payments,5000,34883.44,Gavin Jones (Midlands) Ltd,147569,10/05/2012,10167167
Capital Program ,Open Spaces Refurbishment,LEI08,Capital Contract Payments,5000,1619.98,Gavin Jones (Midlands) Ltd,147569,31/05/2012,10168103
Sustainable Environment,Regulatory Services,REG00,External Contractor & Operator,0742,2370.00,Environmental Scientifics Group,147697,03/05/2012,10166923
Resources & Corporate Governance ,Highways,WHG00,External Contractor & Operator,0742,22836.71,Currall Lewis & Martin (Construction) Ltd,147769,17/05/2012,10167707
Resources & Corporate Governance ,"Communications, Consultation and Information Team",BTR20,Publicity & Marketing,0377,2250.00,Cole Creative Communications Ltd,147857,24/05/2012,10167459
Resources & Corporate Governance ,"Communications, Consultation and Information Team",BTR20,Publicity & Marketing,0377,1350.00,Cole Creative Communications Ltd,147857,24/05/2012,10167460
Resources & Corporate Governance,Handy man,WHM00,External Contractor & Operator,0742,511.00,D Wesley Contracts,147871,10/05/2012,10167301
Resources & Corporate Governance,Handy man,WHM00,External Contractor & Operator,0742,504.00,D Wesley Contracts,147871,17/05/2012,10167540
Capital Program ,Viaduct Cycleways,CYC02,Capital Contract Payments,5000,5015.00,Traffic Technology Ltd,147941,10/05/2012,10167134
Capital Program ,Pettiver Crescent,PCH00,Capital Contract Payments,5000,4700.00,REDACTED PERSONAL DATA,147985,03/05/2012,10166843
Capital Program ,Queen's Diamond Jubilee Leisure Centre Project,LEI03,Capital Contract Payments,5000,269269.87,Shepherd Construction Ltd,148014,10/05/2012,10167162
Resources & Corporate Governance,Handy man,WHM00,External Contractor & Operator,0742,540.00,Dean Hudson,148035,24/05/2012,10167884
Resources & Corporate Governance,Handy man,WHM00,External Contractor & Operator,0742,817.50,Dean Hudson,148035,31/05/2012,10168218
Resources & Corporate Governance,Handy man,WHM00,External Contractor & Operator,0742,600.00,Ford Tucker,148036,03/05/2012,10167014
Resources & Corporate Governance,Handy man,WHM00,External Contractor & Operator,0742,635.50,Ford Tucker,148036,24/05/2012,10167896
Resources & Corporate Governance,Handy man,WHM00,External Contractor & Operator,0742,600.00,Ford Tucker,148036,31/05/2012,10168220
Resources & Corporate Governance ,Human Resources Centralised Services,RES31,Training fees,0011,550.00,Orginspire Ltd,148049,03/05/2012,10166807
Sustainable Inclusive Communities,CL Grants,CGS00,Grants To Voluntary Organisations,0720,5000.00,Victim Support,148051,10/05/2012,10166642
Capital Program ,Viaduct Cycleways,CYC02,Capital Contract Payments,5000,1485.00,Traffic Survey Partners,148053,17/05/2012,10167451
Economy Development & Culture,Grants and Subscriptions,LGS00,Grants To Voluntary Organisations,0720,1000.00,Rugby Community Anchors Association,148067,03/05/2012,10166839
Resources & Corporate Governance,Handy man,WHM00,External Contractor & Operator,0742,585.00,A D Hill,148070,17/05/2012,10167397
Resources & Corporate Governance,Handy man,WHM00,External Contractor & Operator,0742,615.00,A D Hill,148070,24/05/2012,10167914
Resources & Corporate Governance ,Human Resources Centralised Services,RES31,Training fees,0011,520.00,First Impressions Training Ltd,148071,24/05/2012,10167742
Resources & Corporate Governance ,Maintenance of Customer Services Systems,CIS21,Software Maintenance,0374,3000.00,DataNovata Ltd,148083,17/05/2012,10167180
Housing Revenue Account ,Unplanned Maintenance and Repair,UMR00,R&M External Contractors,0100,615.41,Western Power Distribution,148103,17/05/2012,10167683
Capital Program ,Pettiver Crescent,PCH00,Capital Contract Payments,5000,5700.00,REDACTED PERSONAL DATA,148115,25/05/2012,10167916
Capital Program ,Pettiver Crescent,PCH00,Capital Contract Payments,5000,1000.00,REDACTED PERSONAL DATA,148127,31/05/2012,10168132
Capital Program ,Pettiver Crescent,PCH00,Capital Contract Payments,5000,1000.00,REDACTED PERSONAL DATA,148134,31/05/2012,10168304
,Balance Sheet,BS,Contributions To NNDR Pool,9476,1802803.00,Department for Communities & Local Govt,,03/05/2012,
,Balance Sheet,BS,Contributions To NNDR Pool,9476,1802803.00,Department for Communities & Local Govt,,22/05/2012,
